bitfinex/quotes_BTCUSD_20250414
["timestamp","ask_amount","ask_price","bid_price","bid_amount"]
[1744591549545,1.10142189,84637.0,84636.0,8.7e-07]
[1744591549801,1.22215037,84637.0,84636.0,8.7e-07]
[1744591549953,0.35454085,84611.0,84610.0,9.7e-07]
[1744591550148,0.64678239,84611.0,84610.0,9.7e-07]
[1744591552587,0.011821,84594.0,84590.0,0.0473]
[1744591552785,0.011821,84594.0,84591.0,0.00213916]
[1744591552786,0.189143,84592.0,84591.0,0.00213916]
[1744591554235,0.30998454,84592.0,84591.0,0.00213916]
[1744591557473,0.011825,84564.0,84561.0,1.6e-07]
[1744591557602,0.54375085,84562.0,84561.0,1.6e-07]
[1744591557804,0.66459239,84562.0,84561.0,2e-07]
[1744591558405,0.189232,84552.0,84551.0,6e-07]
[1744591558608,0.66461439,84552.0,84551.0,6e-07]
[1744591558944,0.66461439,84552.0,84551.0,2.2e-07]
[1744591560553,0.65891561,84552.0,84551.0,2.2e-07]
[1744591562268,0.67345646,84552.0,84551.0,2.2e-07]
[1744591563277,1.08995646,84552.0,84551.0,2.2e-07]
[1744591563712,1.08995646,84552.0,84525.0,4e-07]
[1744591563713,0.20383085,84526.0,84525.0,4e-07]
[1744591563853,0.529308,84518.0,84517.0,6e-07]
[1744591564049,0.66469039,84518.0,84517.0,6e-07]
[1744591565080,0.66479347,84518.0,84517.0,6e-07]
[1744591565914,0.67374699,84518.0,84517.0,6e-07]
[1744591567560,0.54387385,84507.0,84506.0,1e-06]
[1744591567763,0.83631539,84507.0,84506.0,1e-06]
[1744591568280,0.54388485,84502.0,84501.0,1e-06]
[1744591568522,0.54389885,84496.0,84495.0,1e-06]
[1744591568720,0.66474039,84496.0,84495.0,1e-06]
[1744591568905,0.66474039,84496.0,84482.0,0.0129075]
[1744591568906,0.54392785,84483.0,84482.0,5e-07]
[1744591569115,0.83636939,84483.0,84482.0,5e-07]
[1744591569902,0.82182854,84483.0,84482.0,5e-07]
[1744591570106,0.529387,84483.0,84482.0,5e-07]
[1744591570380,0.70116486,84483.0,84482.0,5e-07]
[1744591571209,0.8220064,84483.0,84482.0,5e-07]
[1744591571415,0.83654725,84483.0,84482.0,5e-07]
[1744591571829,0.8220064,84483.0,84482.0,5e-07]
[1744591572634,0.70116486,84483.0,84482.0,5e-07]
[1744591572754,0.51177786,84483.0,84482.0,5e-07]
[1744591572960,0.17177786,84483.0,84482.0,5e-07]
[1744591573989,0.00013786,84483.0,84482.0,5e-07]
[1744591574326,0.00013786,84483.0,84482.0,0.0455005]
[1744591574528,0.00013786,84483.0,84482.0,0.0946005]
[1744591574791,0.00013786,84483.0,84482.0,0.1050799]
[1744591575317,0.011835,84493.0,84488.0,0.011836]
[1744591575524,0.189344,84502.0,84496.0,0.20119]
[1744591575725,0.011834,84500.0,84497.0,0.01041014]
[1744591575922,0.011834,84496.0,84493.0,0.011835]
[1744591576122,0.201185,84499.0,84494.0,0.02224119]
[1744591576325,0.201189,84497.0,84494.0,0.01040619]
[1744591576611,0.011834,84497.0,84494.0,0.01040619]
[1744591576824,0.201175,84503.0,84492.0,0.011835]
[1744591576998,0.011834,84497.0,84489.0,0.011835]
[1744591577200,0.011835,84492.0,84490.0,0.01036662]
[1744591577400,0.201196,84495.0,84489.0,0.011835]
[1744591577601,0.011833,84503.0,84494.0,0.011835]
[1744591577886,0.011834,84498.0,84492.0,0.01420177]
[1744591578017,0.201195,84495.0,84490.0,0.05586662]
[1744591578224,0.011835,84493.0,84490.0,0.0455]
[1744591578419,0.2012,84493.0,84491.0,0.01036662]
[1744591578765,0.011835,84494.0,84490.0,0.057335]
[1744591578917,0.011835,84494.0,84491.0,0.01036662]
[1744591579134,0.011835,84494.0,84490.0,0.0455]
[1744591579466,0.011834,84500.0,84495.0,0.011835]
[1744591579701,0.189326,84511.0,84497.0,0.011834]
[1744591579907,0.189326,84511.0,84501.0,0.0456]
[1744591579908,0.011833,84507.0,84501.0,0.0456]
[1744591580037,0.011833,84507.0,84502.0,0.12084154]
[1744591580235,0.17136,84518.0,84512.0,0.011832]
[1744591580455,0.011832,84512.0,84508.0,0.011833]
[1744591580795,0.011833,84507.0,84504.0,0.01922643]
[1744591581015,0.201156,84511.0,84506.0,0.011833]
[1744591581388,0.20129522,84511.0,84506.0,0.011833]
[1744591581569,0.011833,84509.0,84506.0,0.011833]
[1744591582491,0.201162,84509.0,84505.0,0.13267454]
[1744591582694,0.011833,84509.0,84505.0,0.13267454]
[1744591583039,0.011833,84509.0,84506.0,0.00739353]
[1744591583949,0.011833,84509.0,84506.0,0.01922653]
[1744591584331,0.00013922,84511.0,84509.0,0.189327]
[1744591584623,0.00013922,84511.0,84510.0,0.12823507]
[1744591585590,0.00013922,84511.0,84510.0,0.00739353]
[1744591586433,0.00013922,84511.0,84510.0,0.01731816]
[1744591586639,0.00013922,84511.0,84510.0,0.00739353]
[1744591586843,0.00013922,84511.0,84510.0,0.01731816]
[1744591587039,0.00013922,84511.0,84510.0,0.00739353]
[1744591587519,0.18946322,84511.0,84510.0,0.00739353]
[1744591588144,0.52946322,84511.0,84510.0,0.00739353]
[1744591588307,0.189376,84488.0,84487.0,0.0456]
[1744591588531,0.189376,84488.0,84487.0,0.05553475]
[1744591588867,0.011835,84490.0,84487.0,0.05553475]
[1744591589065,0.011835,84490.0,84487.0,0.0629301]
[1744591589260,0.011835,84492.0,84488.0,0.201212]
[1744591589451,0.011833,84505.0,84501.0,0.011834]
[1744591589670,0.011833,84505.0,84494.0,0.011835]
[1744591589671,0.011834,84502.0,84500.0,0.00739535]
[1744591590070,0.011834,84502.0,84496.0,0.011834]
[1744591590071,0.011834,84500.0,84496.0,0.011834]
[1744591590270,0.01197122,84511.0,84496.0,0.01553135]
[1744591590445,0.011832,84510.0,84500.0,0.011834]
[1744591590785,0.011833,84504.0,84501.0,0.00739535]
[1744591590988,0.011833,84504.0,84502.0,0.0100456]
[1744591591493,0.011833,84503.0,84500.0,0.01553135]
[1744591591804,0.011833,84503.0,84501.0,0.0100456]
[1744591592379,0.011833,84503.0,84501.0,0.01744095]
[1744591592902,0.189344,84502.0,84501.0,0.01744095]
[1744591593283,0.189344,84502.0,84501.0,0.00739535]
[1744591593673,0.189344,84502.0,84489.0,0.00369735]
[1744591593674,0.011835,84492.0,84489.0,0.00369735]
[1744591593873,0.54391185,84490.0,84489.0,0.00369735]
[1744591594019,0.66475339,84490.0,84489.0,3.5e-07]
[1744591594417,1.08125339,84490.0,84489.0,3.5e-07]
[1744591594820,0.54392785,84483.0,84466.0,0.0004234]
[1744591595021,0.66476939,84483.0,84466.0,0.0004234]
[1744591595238,0.72375368,84483.0,84466.0,0.0004234]
[1744591596169,0.72375368,84483.0,84482.0,0.00046397]
[1744591596801,0.66476939,84483.0,84482.0,0.00046397]
[1744591597143,0.65022854,84483.0,84482.0,0.00046397]
[1744591597756,0.66476939,84483.0,84482.0,0.00046397]
[1744591601414,0.66476939,84483.0,84482.0,9.7e-07]
[1744591601626,0.54395185,84472.0,84471.0,9.7e-07]
[1744591601820,0.83615339,84472.0,84471.0,0.00013883]
[1744591603122,0.529423,84467.0,84466.0,0.0004234]
[1744591603300,0.65026454,84467.0,84466.0,0.0004234]
[1744591603839,0.66480539,84467.0,84466.0,0.0004234]
[1744591606871,0.65026454,84467.0,84466.0,0.0004234]
[1744591607092,0.82166454,84467.0,84466.0,0.0004234]
[1744591607628,0.83066393,84467.0,84466.0,0.0004234]
[1744591607871,0.360823,84467.0,84466.0,0.0004234]
[1744591608575,0.189423,84467.0,84466.0,0.0004234]
[1744591622752,0.529423,84467.0,84466.0,0.0004234]
[1744591623057,0.66480539,84467.0,84466.0,0.0004234]
[1744591623902,0.65026454,84467.0,84466.0,0.0004234]
[1744591626441,0.66480539,84467.0,84466.0,0.0004234]
[1744591626696,0.65026454,84467.0,84466.0,0.0004234]
[1744591626913,0.66480539,84467.0,84466.0,0.0004234]
[1744591632313,0.83592539,84467.0,84466.0,0.0004234]
[1744591636087,0.700543,84467.0,84466.0,0.0004234]
[1744591636528,0.00013922,84472.0,84469.0,0.011838]
[1744591636667,0.00013922,84472.0,84471.0,0.189414]
[1744591636877,0.00013922,84472.0,84471.0,0.20076961]
[1744591637281,0.00013922,84472.0,84471.0,0.00898817]
[1744591637700,0.00013922,84472.0,84469.0,0.201254]
[1744591637905,0.00013922,84472.0,84471.0,0.00898817]
[1744591638244,0.00013922,84472.0,84471.0,0.0089345]
[1744591638404,0.00013922,84472.0,84469.0,0.201254]
[1744591638610,0.00013922,84472.0,84470.0,0.0089345]
[1744591642284,0.01197722,84472.0,84466.0,0.0122624]
[1744591642484,0.01197722,84472.0,84471.0,0.00892087]
[1744591642743,0.189423,84467.0,84466.0,0.0004234]
[1744591643908,0.31026454,84467.0,84466.0,0.0004234]
[1744591644110,0.31907205,84467.0,84466.0,0.0004234]
[1744591645207,0.31026454,84467.0,84466.0,0.0004234]
[1744591646424,0.189423,84467.0,84466.0,0.0004234]
[1744591653669,0.31026454,84467.0,84466.0,0.0004234]
[1744591653870,0.66480539,84467.0,84466.0,0.0004234]
[1744591656337,0.65026454,84467.0,84466.0,0.0004234]
[1744591660127,0.31026454,84467.0,84466.0,0.0004234]
[1744591661919,0.189423,84467.0,84466.0,0.0004234]
[1744591667683,0.194423,84467.0,84466.0,0.0004234]
[1744591675374,0.31526454,84467.0,84466.0,0.0004234]
[1744591677884,0.3271871,84467.0,84466.0,0.0004234]
[1744591679495,0.68172795,84467.0,84466.0,0.0004234]
[1744591680465,0.189461,84450.0,84448.0,5e-07]
[1744591680600,0.64602239,84449.0,84441.0,0.002]
[1744591680811,0.54403985,84433.0,84432.0,1e-06]
[1744591681011,0.66488139,84433.0,84432.0,1e-06]
[1744591681562,0.72184355,84433.0,84432.0,1e-06]
[1744591682388,0.72198267,84433.0,84432.0,1e-06]
[1744591683095,0.67288267,84433.0,84432.0,1e-06]
[1744591683675,0.67888267,84433.0,84432.0,0.001001]
[1744591684529,0.66434182,84433.0,84432.0,0.001001]
[1744591684886,0.83502182,84433.0,84432.0,0.001001]
[1744591686554,0.00613912,84433.0,84432.0,0.001001]
[1744591686913,0.00613912,84433.0,84432.0,0.01121323]
[1744591687080,0.00613912,84433.0,84432.0,0.001001]
[1744591687274,0.00613912,84433.0,84432.0,0.00879734]
[1744591687652,0.00613912,84433.0,84432.0,0.17873888]
[1744591687789,0.00613912,84433.0,84432.0,0.22563888]
[1744591687972,0.00013912,84433.0,84432.0,0.22463888]
[1744591688741,0.00013912,84433.0,84432.0,0.238874]
[1744591688943,0.189444,84458.0,84451.0,0.011841]
[1744591689141,0.189444,84458.0,84452.0,0.011841]
[1744591689142,0.01184,84458.0,84452.0,0.011841]
[1744591689528,0.01184,84457.0,84453.0,0.20900206]
[1744591689835,0.24423533,84460.0,84453.0,0.20900206]
[1744591689836,0.05479733,84460.0,84459.0,0.189441]
[1744591689998,0.05479733,84460.0,84459.0,0.31028254]
[1744591690215,0.05493663,84460.0,84459.0,0.31792439]
[1744591690345,0.05493663,84460.0,84459.0,0.32955482]
[1744591690547,0.07123653,84478.0,84476.0,0.189402]
[1744591690801,0.011837,84480.0,84477.0,0.011837]
[1744591691008,0.17068,84484.0,84482.0,0.189389]
[1744591691207,0.17068,84484.0,84481.0,0.011836]
[1744591691407,0.011837,84480.0,84473.0,0.011838]
[1744591691609,0.011837,84480.0,84475.0,0.011837]
[1744591691811,0.011837,84479.0,84476.0,0.011837]
[1744591692018,0.011837,84480.0,84477.0,0.011837]
[1744591692283,0.201232,84480.0,84477.0,0.00737276]
[1744591692538,0.011839,84466.0,84461.0,0.011839]
[1744591692751,0.011838,84469.0,84464.0,0.011839]
[1744591692976,0.011838,84469.0,84466.0,0.011839]
[1744591693208,0.011838,84469.0,84465.0,0.01921356]
[1744591693439,0.011838,84469.0,84465.0,0.011839]
[1744591693676,0.201242,84475.0,84469.0,0.011838]
[1744591693884,0.011837,84477.0,84473.0,0.011838]
[1744591694094,0.011836,84482.0,84478.0,0.011837]
[1744591694313,0.011836,84485.0,84481.0,0.011836]
[1744591694530,0.011837,84476.0,84472.0,0.011838]
[1744591694803,0.18984124,84488.0,84466.0,0.31026554]
[1744591694804,0.189407,84474.0,84466.0,0.011839]
[1744591694976,0.011838,84473.0,84468.0,0.201258]
[1744591695193,0.011837,84475.0,84470.0,0.011838]
[1744591695506,0.011836,84482.0,84478.0,0.011837]
[1744591695631,0.011836,84486.0,84480.0,0.011837]
[1744591695830,0.011836,84483.0,84477.0,0.011837]
[1744591696088,0.201231,84480.0,84476.0,0.011837]
[1744591696468,0.011836,84485.0,84481.0,0.011836]
[1744591696676,0.011836,84482.0,84479.0,0.011837]
[1744591696849,0.011836,84481.0,84480.0,0.00737392]
[1744591697185,0.011836,84481.0,84478.0,0.011837]
[1744591697407,0.189387,84483.0,84478.0,0.011837]
[1744591697408,0.011836,84483.0,84480.0,0.01921092]
[1744591697552,0.18937,84491.0,84484.0,0.011836]
[1744591697758,0.01230024,84488.0,84484.0,0.011836]
[1744591697960,0.189378,84487.0,84485.0,0.00737392]
[1744591698179,0.01230024,84488.0,84485.0,0.00737392]
[1744591698408,0.011836,84486.0,84483.0,0.011836]
[1744591699753,0.011837,84477.0,84473.0,0.0469]
[1744591699979,0.189416,84470.0,84465.0,0.011839]
[1744591700174,0.189416,84470.0,84467.0,0.011838]
[1744591700554,0.189414,84471.0,84465.0,0.0469]
[1744591700767,0.189414,84471.0,84467.0,0.011838]
[1744591700969,0.201252,84471.0,84467.0,0.011838]
[1744591701174,0.189425,84467.0,84465.0,0.0469]
[1744591701397,0.011838,84471.0,84467.0,0.011838]
[1744591702396,0.011838,84472.0,84469.0,0.011838]
[1744591702964,0.011838,84468.0,84467.0,0.001]
[1744591703372,0.011837,84478.0,84472.0,0.011838]
[1744591703577,0.011837,84475.0,84471.0,0.011838]
[1744591703831,0.201228,84481.0,84476.0,0.011837]
[1744591704011,0.201228,84481.0,84473.0,0.011838]
[1744591704012,0.011837,84477.0,84473.0,0.011838]
[1744591704177,0.011837,84475.0,84471.0,0.011838]
[1744591704379,0.011837,84475.0,84474.0,0.00736137]
[1744591704609,0.011837,84475.0,84472.0,0.011838]
[1744591704778,0.201237,84477.0,84474.0,0.00736137]
[1744591704979,0.011837,84476.0,84472.0,0.011838]
[1744591705497,0.011837,84476.0,84473.0,0.00736137]
[1744591706688,0.189405,84475.0,84473.0,0.00736137]
[1744591706954,0.189405,84475.0,84473.0,0.001]
[1744591707427,0.011837,84479.0,84475.0,0.011837]
[1744591707635,0.189405,84475.0,84474.0,0.00611706]
[1744591707838,0.189405,84475.0,84473.0,0.001]
[1744591708167,0.011838,84472.0,84467.0,0.201259]
[1744591708374,0.011838,84472.0,84468.0,0.011838]
[1744591708845,0.011838,84472.0,84469.0,0.189418]
[1744591709051,0.011837,84474.0,84470.0,0.011838]
[1744591710787,0.011838,84472.0,84469.0,0.001]
[1744591711193,0.201249,84472.0,84468.0,0.011838]
[1744591711530,0.011838,84472.0,84469.0,0.011838]
[1744591711777,0.011837,84474.0,84470.0,0.01895506]
[1744591711949,0.011838,84473.0,84470.0,0.00611706]
[1744591714783,0.011838,84473.0,84470.0,0.00711706]
[1744591715002,0.011837,84475.0,84471.0,0.011838]
[1744591715315,0.011837,84474.0,84471.0,0.011838]
[1744591715469,0.011837,84474.0,84472.0,0.00611706]
[1744591715808,0.01170028,84509.0,84474.0,0.011837]
[1744591716019,0.011836,84481.0,84473.0,0.011838]
[1744591716353,0.011837,84475.0,84474.0,0.00611706]
[1744591716489,0.201239,84477.0,84474.0,0.00611706]
[1744591716691,0.011837,84477.0,84473.0,0.011838]
[1744591716888,0.011837,84477.0,84474.0,0.01795406]
[1744591717184,0.189402,84476.0,84474.0,0.00611706]
[1744591717393,0.011837,84477.0,84474.0,0.00611706]
[1744591717708,0.011837,84479.0,84475.0,0.00609549]
[1744591718023,0.011837,84478.0,84475.0,0.00609549]
[1744591718373,0.001,84476.0,84475.0,0.00609549]
[1744591719429,0.011837,84478.0,84475.0,0.00609549]
[1744591719587,0.190402,84476.0,84475.0,0.00609549]
[1744591720020,0.001,84476.0,84473.0,0.011838]
[1744591720232,0.001,84476.0,84475.0,0.00609549]
[1744591720434,0.001,84476.0,84473.0,0.011838]
[1744591720637,0.001,84476.0,84475.0,0.00609549]
[1744591720797,0.011837,84477.0,84473.0,0.011838]
[1744591720998,0.011837,84477.0,84475.0,0.00609549]
[1744591721246,0.011837,84477.0,84473.0,0.011838]
[1744591721461,0.011837,84477.0,84474.0,0.011837]
[1744591721659,0.011837,84477.0,84475.0,0.00609549]
[1744591721830,0.001,84476.0,84475.0,0.00609549]
[1744591722688,0.012837,84477.0,84475.0,0.00609549]
[1744591722689,0.011837,84477.0,84475.0,0.00609549]
[1744591722852,0.012837,84477.0,84475.0,0.00609549]
[1744591723049,0.012837,84477.0,84473.0,0.011838]
[1744591723272,0.012837,84477.0,84474.0,0.00609549]
[1744591723674,0.001,84477.0,84474.0,0.20733749]
[1744591724083,0.011837,84478.0,84474.0,0.01793249]
[1744591724236,0.201237,84477.0,84474.0,0.01793249]
[1744591724447,0.001,84476.0,84474.0,0.01793249]
[1744591725117,0.202237,84477.0,84474.0,0.01793249]
[1744591725348,0.202237,84477.0,84474.0,0.00609549]
[1744591725575,0.001,84476.0,84474.0,0.00609549]
[1744591725784,0.012837,84476.0,84472.0,0.011838]
[1744591725988,0.012837,84476.0,84475.0,0.00609549]
[1744591726219,0.011838,84471.0,84465.0,0.011839]
[1744591726500,0.189416,84470.0,84469.0,0.00609549]
[1744591726655,0.201247,84473.0,84469.0,0.01793349]
[1744591726857,0.201251,84472.0,84469.0,0.00609549]
[1744591727245,0.001,84476.0,84474.0,0.189405]
[1744591727445,0.001,84476.0,84475.0,0.17673835]
[1744591727712,0.011836,84486.0,84481.0,0.011836]
[1744591727925,0.189387,84483.0,84482.0,0.00612468]
[1744591728128,0.189387,84483.0,84445.0,0.341047]
[1744591728129,0.189412,84472.0,84468.0,0.4187]
[1744591728334,0.011837,84478.0,84468.0,0.55137954]
[1744591728335,0.011837,84474.0,84468.0,0.55137954]
[1744591728505,0.011837,84475.0,84471.0,0.189414]
[1744591728908,0.201254,84471.0,84468.0,0.4187]
[1744591729109,0.011837,84474.0,84468.0,0.4187]
[1744591729258,0.011837,84476.0,84470.0,0.011838]
[1744591729451,0.011836,84481.0,84472.0,0.189411]
[1744591729452,0.011837,84480.0,84472.0,0.189411]
[1744591729707,0.011837,84479.0,84475.0,0.189403]
[1744591729976,0.011837,84476.0,84472.0,0.189411]
[1744591730181,0.011837,84478.0,84474.0,0.189406]
[1744591730535,0.011837,84477.0,84474.0,0.189406]
[1744591731142,0.011837,84478.0,84474.0,0.189406]
[1744591731350,0.011837,84479.0,84474.0,0.189406]
[1744591731559,0.011837,84478.0,84474.0,0.189406]
[1744591731981,0.011837,84475.0,84470.0,0.189414]
[1744591732214,0.011837,84478.0,84472.0,0.189411]
[1744591732636,0.011837,84478.0,84473.0,0.189407]
[1744591733882,0.011836,84481.0,84475.0,0.189404]
[1744591734101,0.189388,84483.0,84475.0,0.189404]
[1744591734102,0.201214,84487.0,84477.0,0.1894]
[1744591734302,0.011836,84483.0,84477.0,0.1894]
[1744591735042,0.011836,84483.0,84475.0,0.011837]
[1744591735043,0.011837,84480.0,84475.0,0.189405]
[1744591735238,0.011837,84478.0,84475.0,0.189405]
[1744591735441,0.011837,84478.0,84476.0,0.00739674]
[1744591736744,0.011837,84479.0,84476.0,0.00739674]
[1744591737712,0.001,84478.0,84476.0,0.00739674]
[1744591738258,0.012837,84478.0,84473.0,0.189407]
[1744591738639,0.011837,84478.0,84473.0,0.189407]
[1744591738843,0.012837,84478.0,84473.0,0.189407]
[1744591739756,0.001,84478.0,84474.0,0.189405]
[1744591739924,0.011837,84477.0,84474.0,0.189405]
[1744591740983,0.011837,84478.0,84474.0,0.189405]
[1744591741221,0.011837,84480.0,84474.0,0.189405]
[1744591741447,0.011837,84477.0,84474.0,0.189405]
[1744591741675,0.011837,84478.0,84474.0,0.189405]
[1744591741904,0.011836,84483.0,84475.0,0.00607449]
[1744591742129,0.182116,84486.0,84475.0,0.00844181]
[1744591742354,0.011837,84479.0,84476.0,0.189402]
[1744591742553,0.011836,84485.0,84478.0,0.189397]
[1744591742802,0.20122,84484.0,84478.0,0.189397]
[1744591742998,0.201225,84482.0,84479.0,0.00607449]
[1744591743365,0.011837,84480.0,84476.0,0.189402]
[1744591743738,0.011837,84480.0,84475.0,0.011837]
[1744591743739,0.189399,84478.0,84477.0,0.00607449]
[1744591743988,0.011837,84479.0,84473.0,0.011838]
[1744591744275,0.011837,84480.0,84477.0,0.1894]
[1744591744786,0.201231,84480.0,84478.0,0.00607449]
[1744591745266,0.011837,84479.0,84476.0,0.001]
[1744591746123,0.011837,84480.0,84476.0,0.190402]
[1744591746325,0.011837,84479.0,84476.0,0.001]
[1744591746531,0.011837,84478.0,84474.0,0.189405]
[1744591746706,0.011837,84476.0,84471.0,0.189411]
[1744591746913,0.011837,84476.0,84473.0,0.189409]
[1744591747552,0.011837,84477.0,84473.0,0.189409]
[1744591748111,0.011837,84477.0,84473.0,0.191409]
[1744591748307,0.011837,84478.0,84473.0,0.203247]
[1744591748435,0.011837,84478.0,84473.0,0.204247]
[1744591748859,0.201235,84478.0,84473.0,0.191409]
[1744591749064,0.011837,84476.0,84473.0,0.002]
[1744591749447,0.31024654,84475.0,84473.0,0.003]
[1744591749652,0.31024654,84475.0,84473.0,0.001]
[1744591749810,0.31024654,84475.0,84473.0,0.003]
[1744591750016,0.31024654,84475.0,84473.0,0.001]
[1744591750428,0.31024654,84475.0,84473.0,0.002]
[1744591750634,0.01184,84458.0,84453.0,0.01184]
[1744591750831,0.01184,84457.0,84453.0,0.01184]
[1744591751032,0.011838,84468.0,84456.0,0.01184]
[1744591751258,0.011838,84472.0,84464.0,0.011839]
[1744591751422,0.011838,84468.0,84462.0,0.201273]
[1744591751618,0.011839,84466.0,84462.0,0.189434]
[1744591751816,0.011839,84463.0,84457.0,0.189443]
[1744591752037,0.011839,84463.0,84459.0,0.20128]
[1744591752460,0.011839,84464.0,84459.0,0.20128]
[1744591752918,0.01184,84456.0,84453.0,0.006]
[1744591753126,0.01184,84456.0,84450.0,0.189459]
[1744591753282,0.01184,84456.0,84452.0,0.011841]
[1744591753907,0.01184,84456.0,84452.0,0.201297]
[1744591754526,0.001,84456.0,84455.0,0.18945]
[1744591754911,0.001,84456.0,84454.0,0.189452]
[1744591755679,0.01184,84458.0,84454.0,0.189452]
[1744591755994,0.001,84456.0,84454.0,0.207292]
[1744591756622,0.001,84456.0,84454.0,0.20965995]
[1744591756849,0.001,84456.0,84455.0,0.00907628]
[1744591757186,0.001,84456.0,84455.0,0.00607628]
[1744591757761,0.001,84456.0,84455.0,0.00591526]
[1744591758111,0.001,84456.0,84455.0,0.01331303]
[1744591758343,0.001,84456.0,84455.0,0.01631303]
[1744591758951,0.011838,84467.0,84463.0,0.189431]
[1744591759210,0.011839,84466.0,84464.0,0.00604944]
[1744591759552,0.011839,84466.0,84462.0,0.201271]
[1744591759764,0.011839,84466.0,84463.0,0.00604944]
[1744591760261,0.18942,84469.0,84463.0,0.19847944]
[1744591761385,0.18942,84469.0,84463.0,0.19947944]
[1744591761579,0.011839,84466.0,84463.0,0.19947944]
[1744591761793,0.011839,84466.0,84463.0,0.00904944]
[1744591761984,0.011839,84466.0,84463.0,0.00604944]
[1744591762231,0.011839,84466.0,84463.0,0.00904944]
[1744591762404,0.011839,84466.0,84463.0,0.003]
[1744591762566,0.011839,84466.0,84464.0,0.00604944]
[1744591763471,0.189427,84465.0,84464.0,0.00604944]
[1744591763667,0.01184,84459.0,84455.0,0.01184]
[1744591763858,0.01184,84459.0,84456.0,0.00604944]
[1744591764904,0.201277,84461.0,84457.0,0.189445]
[1744591765077,0.011839,84464.0,84461.0,0.011839]
[1744591765309,0.011839,84464.0,84460.0,0.189438]
[1744591765529,0.011839,84464.0,84461.0,0.00615248]
[1744591765746,0.011839,84464.0,84460.0,0.189438]
[1744591765964,0.011839,84464.0,84461.0,0.00615248]
[1744591766172,0.011839,84464.0,84460.0,0.189438]
[1744591766379,0.011839,84464.0,84461.0,0.00615248]
[1744591766604,0.189433,84463.0,84461.0,0.00615248]
[1744591766835,0.189436,84461.0,84460.0,0.004]
[1744591767068,0.189436,84461.0,84460.0,0.006]
[1744591767528,0.189436,84461.0,84460.0,0.004]
[1744591767948,0.201275,84461.0,84457.0,0.01923792]
[1744591768356,0.011839,84461.0,84457.0,0.01923792]
[1744591768779,0.011839,84461.0,84457.0,0.02293689]
[1744591769275,0.011839,84461.0,84460.0,0.002]
[1744591769489,0.201275,84461.0,84460.0,0.002]
[1744591769683,0.201275,84461.0,84458.0,0.01184]
[1744591769988,0.011839,84460.0,84457.0,0.02993689]
[1744591770398,0.011839,84460.0,84457.0,0.02793689]
[1744591770817,0.189441,84459.0,84458.0,0.002]
[1744591771875,0.189441,84459.0,84457.0,0.00369897]
[1744591772116,0.189441,84459.0,84458.0,0.004]
[1744591772392,0.189463,84449.0,84448.0,0.0001393]
[1744591772978,0.189463,84449.0,84448.0,0.00640874]
[1744591773942,0.189463,84449.0,84448.0,0.0011393]
[1744591775108,0.189463,84449.0,84448.0,0.0001393]
[1744591775326,0.189463,84449.0,84448.0,0.0021393]
[1744591775956,0.189463,84449.0,84448.0,0.0001393]
[1744591776119,0.189463,84449.0,84448.0,0.0011393]
[1744591776938,0.31030454,84449.0,84448.0,0.0011393]
[1744591777737,0.189463,84449.0,84448.0,0.0011393]
[1744591780317,0.011841,84451.0,84448.0,0.0011393]
[1744591781494,0.011841,84451.0,84448.0,0.0001393]
[1744591781692,0.011841,84451.0,84448.0,0.0011393]
[1744591781889,0.189463,84449.0,84448.0,0.0011393]
[1744591782089,0.189463,84449.0,84448.0,0.00760344]
[1744591782336,0.0466,84469.0,84448.0,0.00760344]
[1744591782337,0.16968,84460.0,84457.0,0.01184]
[1744591782512,0.181519,84460.0,84456.0,0.201285]
[1744591782716,0.16968,84460.0,84456.0,0.201285]
[1744591782956,0.16968,84460.0,84457.0,0.01826812]
[1744591783360,0.181519,84460.0,84457.0,0.01826812]
[1744591783584,0.370959,84460.0,84457.0,0.00642812]
[1744591783922,0.181519,84460.0,84455.0,0.201289]
[1744591784130,0.181519,84460.0,84458.0,0.00524962]
[1744591784273,0.181519,84460.0,84456.0,0.01184]
[1744591784274,0.01184,84459.0,84456.0,0.01184]
[1744591784898,0.182519,84460.0,84457.0,0.01184]
[1744591785095,0.012839,84460.0,84457.0,0.01184]
[1744591785361,0.013839,84460.0,84457.0,0.01184]
[1744591785529,0.002,84459.0,84456.0,0.01184]
[1744591785738,0.002,84459.0,84457.0,0.31265447]
[1744591785893,0.002,84459.0,84457.0,0.31028654]
[1744591787000,0.002,84459.0,84458.0,0.39126769]
[1744591787165,0.002,84459.0,84458.0,0.50974154]
[1744591787865,0.011837,84476.0,84470.0,0.201253]
[1744591788231,0.011837,84476.0,84472.0,0.18941]
[1744591788880,0.011837,84476.0,84473.0,0.011838]
[1744591789094,0.011837,84477.0,84473.0,0.011838]
[1744591789301,0.002,84476.0,84473.0,0.011838]
[1744591789804,0.005,84476.0,84473.0,0.011838]
[1744591790004,0.005,84476.0,84474.0,0.189407]
[1744591790432,0.007,84476.0,84474.0,0.189407]
[1744591790725,0.005,84476.0,84474.0,0.189407]
[1744591791200,0.00706045,84476.0,84474.0,0.189407]
[1744591791684,6.045e-05,84476.0,84474.0,0.189407]
[1744591791835,0.00506045,84476.0,84474.0,0.189407]
[1744591792259,0.00506045,84476.0,84475.0,0.12320883]
[1744591792434,0.00706045,84476.0,84475.0,0.12084154]
[1744591793079,0.00706045,84476.0,84474.0,0.189407]
[1744591793345,0.011838,84470.0,84465.0,0.011839]
[1744591793554,0.011838,84471.0,84465.0,0.32210554]
[1744591793759,0.011838,84471.0,84467.0,0.011838]
[1744591793963,0.011838,84470.0,84465.0,0.32210554]
[1744591794166,0.011838,84473.0,84467.0,0.189421]
[1744591794365,0.20129945,84476.0,84464.0,0.34]
[1744591794366,0.011838,84469.0,84464.0,0.011839]
[1744591794568,0.011838,84469.0,84465.0,0.011839]
[1744591794769,0.011838,84469.0,84467.0,0.003]
[1744591795233,0.011839,84466.0,84458.0,0.34]
[1744591795476,0.01184,84455.0,84449.0,0.011841]
[1744591795681,0.01184,84455.0,84450.0,0.18946]